[Event "Titled Tuesday Blitz July 25 Late 2023"]
[White "Mickiewicz, Piotr"]
[Black "Al-Tarboush, Ward"]
[WhiteFideId "1114891"]
[BlackFideId "7601450"]
[WhiteElo "2425"]
[BlackElo "2565"]
[Result "1-0"]
[Round "3"]
[TimeControl "180+2"]
[Date "2023.07.25"]
[WhiteClock "0:00:04"]
[BlackClock "0:00:00"]
[Board "103"]

1. Nf3 {[%clk 0:03:00]}  d5 {[%clk 0:02:59]} 2. e3 {[%clk 0:03:01]}  c5 {[%clk 0:02:58]} 3. b3 {[%clk 0:03:00]}  Nc6 {[%clk 0:02:58]} 4. Bb2 {[%clk 0:03:00]}  a6 {[%clk 0:02:59]} 5. c4 {[%clk 0:02:56]}  d4 {[%clk 0:02:58]} 6. d3 {[%clk 0:02:51]}  e5 {[%clk 0:02:57]} 7. Be2 {[%clk 0:02:47]}  Nf6 {[%clk 0:02:54]} 8. O-O {[%clk 0:02:45]}  Bd6 {[%clk 0:02:55]} 9. exd4 {[%clk 0:02:44]}  exd4 {[%clk 0:02:55]} 10. a3 {[%clk 0:02:37]}  O-O {[%clk 0:02:49]} 11. b4 {[%clk 0:02:37]}  cxb4 {[%clk 0:02:50]} 12. axb4 {[%clk 0:02:36]}  Bxb4 {[%clk 0:02:51]} 13. Ba3 {[%clk 0:02:34]}  Bxa3 {[%clk 0:02:49]} 14. Nxa3 {[%clk 0:02:33]}  Bg4 {[%clk 0:02:49]} 15. h3 {[%clk 0:02:30]}  Bf5 {[%clk 0:02:48]} 16. Rb1 {[%clk 0:02:12]}  Qe7 {[%clk 0:02:47]} 17. Nc2 {[%clk 0:02:09]}  Rad8 {[%clk 0:02:46]} 18. Qd2 {[%clk 0:02:06]}  Rfe8 {[%clk 0:02:46]} 19. Rfe1 {[%clk 0:02:05]}  Qd7 {[%clk 0:02:46]} 20. Bf1 {[%clk 0:02:04]}  h6 {[%clk 0:02:44]} 21. Rxe8+ {[%clk 0:02:00]}  Rxe8 {[%clk 0:02:45]} 22. Qf4 {[%clk 0:01:54]}  Rd8 {[%clk 0:02:43]} 23. g4 {[%clk 0:01:43]}  Be6 {[%clk 0:02:41]} 24. Bg2 {[%clk 0:01:41]}  a5 {[%clk 0:02:34]} 25. Ne5 {[%clk 0:01:40]}  Nxe5 {[%clk 0:02:32]} 26. Qxe5 {[%clk 0:01:40]}  Qa4 {[%clk 0:02:16]} 27. Nxd4 {[%clk 0:01:38]}  Qa2 {[%clk 0:02:17]} 28. Re1 {[%clk 0:01:27]}  a4 {[%clk 0:02:08]} 29. Nxe6 {[%clk 0:01:26]}  fxe6 {[%clk 0:02:09]} 30. Qxe6+ {[%clk 0:01:25]}  Kh8 {[%clk 0:02:09]} 31. h4 {[%clk 0:01:21]}  Re8 {[%clk 0:02:04]} 32. Qxe8+ {[%clk 0:01:22]}  Nxe8 {[%clk 0:02:05]} 33. Rxe8+ {[%clk 0:01:21]}  Kh7 {[%clk 0:02:05]} 34. Be4+ {[%clk 0:01:18]}  g6 {[%clk 0:02:05]} 35. h5 {[%clk 0:01:12]}  a3 {[%clk 0:01:58]} 36. hxg6+ {[%clk 0:01:10]}  Kg7 {[%clk 0:01:58]} 37. Re7+ {[%clk 0:01:10]}  Kf6 {[%clk 0:01:47]} 38. g7 {[%clk 0:01:10]}  Kxe7 {[%clk 0:01:35]} 39. g8=Q {[%clk 0:01:09]}  Qb1+ {[%clk 0:01:36]} 40. Kg2 {[%clk 0:01:09]}  a2 {[%clk 0:01:37]} 41. Qg7+ {[%clk 0:01:03]}  Kd6 {[%clk 0:01:36]} 42. Qd4+ {[%clk 0:01:01]}  Kc7 {[%clk 0:01:36]} 43. Qe5+ {[%clk 0:00:58]}  Kb6 {[%clk 0:01:33]} 44. c5+ {[%clk 0:00:58]}  Ka7 {[%clk 0:01:29]} 45. d4 {[%clk 0:00:35]}  Qb2 {[%clk 0:01:29]} 46. c6 {[%clk 0:00:32]}  a1=Q {[%clk 0:01:21]} 47. c7 {[%clk 0:00:31]}  Qbc1 {[%clk 0:01:07]} 48. Qc5+ {[%clk 0:00:31]}  Qxc5 {[%clk 0:01:07]} 49. dxc5 {[%clk 0:00:32]}  Qe5 {[%clk 0:00:52]} 50. c8=Q {[%clk 0:00:20]}  Qxe4+ {[%clk 0:00:52]} 51. Kg3 {[%clk 0:00:19]}  Qe5+ {[%clk 0:00:52]} 52. Kg2 {[%clk 0:00:18]}  Qe4+ {[%clk 0:00:52]} 53. f3 {[%clk 0:00:19]}  Qe2+ {[%clk 0:00:51]} 54. Kg3 {[%clk 0:00:20]}  Qe5+ {[%clk 0:00:51]} 55. Kh3 {[%clk 0:00:19]}  Qe3 {[%clk 0:00:33]} 56. Qf5 {[%clk 0:00:19]}  Qf2 {[%clk 0:00:28]} 57. Qd5 {[%clk 0:00:16]}  Qe2 {[%clk 0:00:16]} 58. Kg3 {[%clk 0:00:15]}  Qe8 {[%clk 0:00:12]} 59. Kf4 {[%clk 0:00:15]}  Qf8+ {[%clk 0:00:12]} 60. Ke4 {[%clk 0:00:15]}  Qe7+ {[%clk 0:00:11]} 61. Kd3 {[%clk 0:00:15]}  Qe1 {[%clk 0:00:10]} 62. Qa2+ {[%clk 0:00:15]}  Kb8 {[%clk 0:00:11]} 63. Qg8+ {[%clk 0:00:15]}  Ka7 {[%clk 0:00:11]} 64. Qd5 {[%clk 0:00:15]}  Qd1+ {[%clk 0:00:11]} 65. Ke4 {[%clk 0:00:16]}  Qe2+ {[%clk 0:00:11]} 66. Kf5 {[%clk 0:00:17]}  Qc2+ {[%clk 0:00:10]} 67. Kf6 {[%clk 0:00:17]}  Qh7 {[%clk 0:00:10]} 68. Qa2+ {[%clk 0:00:14]}  Kb8 {[%clk 0:00:10]} 69. Qf7 {[%clk 0:00:15]}  Qd3 {[%clk 0:00:08]} 70. Kg7 {[%clk 0:00:14]}  Qe3 {[%clk 0:00:06]} 71. Qf8+ {[%clk 0:00:13]}  Ka7 {[%clk 0:00:06]} 72. f4 {[%clk 0:00:13]}  Qf3 {[%clk 0:00:04]} 73. Qf5 {[%clk 0:00:12]}  Qc3+ {[%clk 0:00:04]} 74. Kxh6 {[%clk 0:00:12]}  Qh8+ {[%clk 0:00:05]} 75. Kg5 {[%clk 0:00:12]}  Qg7+ {[%clk 0:00:05]} 76. Kh4 {[%clk 0:00:13]}  Qh8+ {[%clk 0:00:05]} 77. Kg3 {[%clk 0:00:13]}  Qc3+ {[%clk 0:00:05]} 78. Kh4 {[%clk 0:00:13]}  Qh8+ {[%clk 0:00:06]} 79. Kg5 {[%clk 0:00:13]}  Qg7+ {[%clk 0:00:06]} 80. Qg6 {[%clk 0:00:12]}  Qe7+ {[%clk 0:00:06]} 81. Kh5 {[%clk 0:00:12]}  Qxc5+ {[%clk 0:00:06]} 82. f5 {[%clk 0:00:12]}  b5 {[%clk 0:00:06]} 83. Qf7+ {[%clk 0:00:12]}  Ka6 {[%clk 0:00:06]} 84. Qe6+ {[%clk 0:00:12]}  Ka5 {[%clk 0:00:06]} 85. Kg6 {[%clk 0:00:13]}  Qc2 {[%clk 0:00:05]} 86. Kg7 {[%clk 0:00:12]}  Qc3+ {[%clk 0:00:04]} 87. f6 {[%clk 0:00:12]}  b4 {[%clk 0:00:04]} 88. g5 {[%clk 0:00:12]}  b3 {[%clk 0:00:05]} 89. Qd5+ {[%clk 0:00:12]}  Ka4 {[%clk 0:00:05]} 90. Qa8+ {[%clk 0:00:12]}  Kb4 {[%clk 0:00:05]} 91. Qb7+ {[%clk 0:00:12]}  Ka3 {[%clk 0:00:05]} 92. Kf8 {[%clk 0:00:12]}  b2 {[%clk 0:00:03]} 93. f7 {[%clk 0:00:12]}  Qb4+ {[%clk 0:00:02]} 94. Qxb4+ {[%clk 0:00:10]}  Kxb4 {[%clk 0:00:03]} 95. Kg8 {[%clk 0:00:10]}  b1=Q {[%clk 0:00:04]} 96. f8=Q+ {[%clk 0:00:10]}  Kc4 {[%clk 0:00:04]} 97. Qf7+ {[%clk 0:00:10]}  Kd4 {[%clk 0:00:04]} 98. Qf6+ {[%clk 0:00:10]}  Ke3 {[%clk 0:00:04]} 99. g6 {[%clk 0:00:11]}  Qb8+ {[%clk 0:00:03]} 100. Kh7 {[%clk 0:00:12]}  Qh2+ {[%clk 0:00:03]} 101. Kg7 {[%clk 0:00:11]}  Qc7+ {[%clk 0:00:03]} 102. Qf7 {[%clk 0:00:12]}  Qe5+ {[%clk 0:00:03]} 103. Kg8 {[%clk 0:00:12]}  Qb8+ {[%clk 0:00:03]} 104. Qf8 {[%clk 0:00:12]}  Qb3+ {[%clk 0:00:03]} 105. Kh7 {[%clk 0:00:12]}  Qc2 {[%clk 0:00:03]} 106. Qf6 {[%clk 0:00:09]}  Qc7+ {[%clk 0:00:02]} 107. g7 {[%clk 0:00:09]}  Ke4 {[%clk 0:00:02]} 108. Qg6+ {[%clk 0:00:09]}  Kd5 {[%clk 0:00:01]} 109. Kh8 {[%clk 0:00:09]}  Qc3 {[%clk 0:00:01]} 110. Qf7+ {[%clk 0:00:08]}  Kd6 {[%clk 0:00:01]} 111. Qf8+ {[%clk 0:00:07]}  Ke6 {[%clk 0:00:01]} 112. Qe8+ {[%clk 0:00:07]}  Kd6 {[%clk 0:00:02]} 113. Kg8 {[%clk 0:00:07]}  Qc4+ {[%clk 0:00:02]} 114. Kf8 {[%clk 0:00:07]}  Qf4+ {[%clk 0:00:01]} 115. Qf7 {[%clk 0:00:07]}  Qh6 {[%clk 0:00:02]} 116. Qe7+ {[%clk 0:00:06]}  Kd5 {[%clk 0:00:02]} 117. Ke8 {[%clk 0:00:06]}  Qh7 {[%clk 0:00:02]} 118. Qf7+ {[%clk 0:00:06]}  Kd6 {[%clk 0:00:02]} 119. g8=Q {[%clk 0:00:07]}  Qe4+ {[%clk 0:00:02]} 120. Kf8 {[%clk 0:00:04]}  Qa8+ {[%clk 0:00:02]} 121. Qe8 {[%clk 0:00:04]}  Qf3+ {[%clk 0:00:00]} 122. Qgf7 {[%clk 0:00:04]} 1-0


[Site "https://www.chess.com"]

[Event "Titled Tuesday Blitz July 25 Late 2023"]
[White "Eggleston, Thomas A"]
[Black "Ozates, Tuna"]
[WhiteFideId "412139"]
[BlackFideId "6354521"]
[WhiteElo "2420"]
[BlackElo "2565"]
[Result "0-1"]
[Round "3"]
[TimeControl "180+2"]
[Date "2023.07.25"]
[WhiteClock "0:00:00"]
[BlackClock "0:00:17"]
[Board "106"]

1. e4 {[%clk 0:03:00]}  c5 {[%clk 0:02:57]} 2. Nf3 {[%clk 0:03:01]}  Nc6 {[%clk 0:02:56]} 3. Bb5 {[%clk 0:03:01]}  e6 {[%clk 0:02:55]} 4. Bxc6 {[%clk 0:03:00]}  bxc6 {[%clk 0:02:56]} 5. d3 {[%clk 0:02:59]}  Ne7 {[%clk 0:02:55]} 6. Qe2 {[%clk 0:02:57]}  Ng6 {[%clk 0:02:55]} 7. h4 {[%clk 0:02:57]}  h5 {[%clk 0:02:52]} 8. g3 {[%clk 0:02:27]}  d6 {[%clk 0:02:52]} 9. e5 {[%clk 0:02:23]}  dxe5 {[%clk 0:02:49]} 10. Nxe5 {[%clk 0:02:23]}  Qd5 {[%clk 0:02:50]} 11. Nf3 {[%clk 0:02:23]}  Rb8 {[%clk 0:02:28]} 12. Nc3 {[%clk 0:02:13]}  Qd7 {[%clk 0:02:27]} 13. Ne5 {[%clk 0:02:05]}  Nxe5 {[%clk 0:02:26]} 14. Qxe5 {[%clk 0:02:05]}  Rb4 {[%clk 0:02:11]} 15. a3 {[%clk 0:01:51]}  f6 {[%clk 0:02:09]} 16. Qe2 {[%clk 0:01:43]}  Rb8 {[%clk 0:02:03]} 17. f4 {[%clk 0:01:28]}  Kf7 {[%clk 0:01:56]} 18. b3 {[%clk 0:01:26]}  g6 {[%clk 0:01:55]} 19. Bb2 {[%clk 0:01:25]}  Be7 {[%clk 0:01:38]} 20. O-O-O {[%clk 0:01:23]}  a5 {[%clk 0:01:36]} 21. a4 {[%clk 0:01:19]}  f5 {[%clk 0:01:27]} 22. Qe5 {[%clk 0:00:42]}  Ba6 {[%clk 0:01:24]} 23. Qe3 {[%clk 0:00:37]}  Rhd8 {[%clk 0:01:16]} 24. Rhe1 {[%clk 0:00:34]}  Qd6 {[%clk 0:00:45]} 25. Re2 {[%clk 0:00:33]}  Bf6 {[%clk 0:00:45]} 26. Rde1 {[%clk 0:00:29]}  Re8 {[%clk 0:00:44]} 27. Qd2 {[%clk 0:00:25]}  Rb4 {[%clk 0:00:40]} 28. Nd1 {[%clk 0:00:25]}  Bd4 {[%clk 0:00:27]} 29. Ne3 {[%clk 0:00:15]}  Reb8 {[%clk 0:00:22]} 30. Bxd4 {[%clk 0:00:10]}  cxd4 {[%clk 0:00:21]} 31. Nc4 {[%clk 0:00:08]}  Bxc4 {[%clk 0:00:21]} 32. dxc4 {[%clk 0:00:08]}  Rxa4 {[%clk 0:00:18]} 33. bxa4 {[%clk 0:00:02]}  Qa3+ {[%clk 0:00:16]} 34. Kd1 {[%clk 0:00:00]}  Rb1+ {[%clk 0:00:17]} 0-1


[Site "https://www.chess.com"]

[Event "Titled Tuesday Blitz July 25 Late 2023"]
[White "Rostomyan, Mikayel"]
[Black "Ai, Evan"]
[WhiteFideId "13313754"]
[BlackFideId "2094770"]
[WhiteElo "2562"]
[BlackElo "2419"]
[Result "1-0"]
[Round "3"]
[TimeControl "180+2"]
[Date "2023.07.25"]
[WhiteClock "0:00:12"]
[BlackClock "0:00:12"]
[Board "107"]

1. d4 {[%clk 0:03:00]}  Nf6 {[%clk 0:02:56]} 2. Nf3 {[%clk 0:03:01]}  d5 {[%clk 0:02:56]} 3. c4 {[%clk 0:02:52]}  e6 {[%clk 0:02:55]} 4. g3 {[%clk 0:02:52]}  Bb4+ {[%clk 0:02:53]} 5. Bd2 {[%clk 0:02:51]}  Be7 {[%clk 0:02:53]} 6. Bg2 {[%clk 0:02:51]}  O-O {[%clk 0:02:53]} 7. O-O {[%clk 0:02:51]}  c6 {[%clk 0:02:53]} 8. Qc2 {[%clk 0:02:51]}  Nbd7 {[%clk 0:02:53]} 9. Bf4 {[%clk 0:02:51]}  b6 {[%clk 0:02:52]} 10. cxd5 {[%clk 0:02:50]}  cxd5 {[%clk 0:02:52]} 11. Bc7 {[%clk 0:02:50]}  Qe8 {[%clk 0:02:52]} 12. Rc1 {[%clk 0:02:50]}  Bb7 {[%clk 0:02:50]} 13. Qb3 {[%clk 0:02:47]}  Ne4 {[%clk 0:02:40]} 14. Na3 {[%clk 0:02:43]}  Bd6 {[%clk 0:02:33]} 15. Nb5 {[%clk 0:02:40]}  Qe7 {[%clk 0:02:30]} 16. Nxd6 {[%clk 0:02:17]}  Nxd6 {[%clk 0:02:29]} 17. Qa3 {[%clk 0:02:16]}  Nf5 {[%clk 0:02:12]} 18. Qxe7 {[%clk 0:02:13]}  Nxe7 {[%clk 0:02:13]} 19. Bd6 {[%clk 0:02:13]}  Rfe8 {[%clk 0:02:07]} 20. Rc7 {[%clk 0:02:09]}  Bc8 {[%clk 0:02:07]} 21. Bxe7 {[%clk 0:01:40]}  Rxe7 {[%clk 0:02:08]} 22. Ne5 {[%clk 0:01:41]}  f6 {[%clk 0:01:59]} 23. Nc6 {[%clk 0:01:40]}  Rf7 {[%clk 0:01:50]} 24. Nxa7 {[%clk 0:01:37]}  Ba6 {[%clk 0:01:45]} 25. e4 {[%clk 0:01:19]}  Nf8 {[%clk 0:01:31]} 26. Rxf7 {[%clk 0:01:08]}  Kxf7 {[%clk 0:01:32]} 27. Nc6 {[%clk 0:01:05]}  dxe4 {[%clk 0:01:31]} 28. Bxe4 {[%clk 0:01:04]}  Bb7 {[%clk 0:01:31]} 29. d5 {[%clk 0:00:49]}  Rc8 {[%clk 0:01:23]} 30. dxe6+ {[%clk 0:00:43]}  Nxe6 {[%clk 0:01:24]} 31. Ne5+ {[%clk 0:00:42]}  fxe5 {[%clk 0:01:22]} 32. Bxb7 {[%clk 0:00:43]}  Rc2 {[%clk 0:01:21]} 33. b4 {[%clk 0:00:32]}  Nd4 {[%clk 0:01:20]} 34. a4 {[%clk 0:00:32]}  Rb2 {[%clk 0:01:04]} 35. a5 {[%clk 0:00:30]}  bxa5 {[%clk 0:01:03]} 36. Bd5+ {[%clk 0:00:28]}  Ke7 {[%clk 0:01:00]} 37. bxa5 {[%clk 0:00:29]}  Nb5 {[%clk 0:00:51]} 38. a6 {[%clk 0:00:27]}  Na7 {[%clk 0:00:46]} 39. Bb7 {[%clk 0:00:26]}  Kd6 {[%clk 0:00:44]} 40. Rd1+ {[%clk 0:00:25]}  Kc7 {[%clk 0:00:44]} 41. Rd5 {[%clk 0:00:24]}  Rb1+ {[%clk 0:00:38]} 42. Kg2 {[%clk 0:00:24]}  Re1 {[%clk 0:00:37]} 43. g4 {[%clk 0:00:20]}  Kb6 {[%clk 0:00:35]} 44. Rd7 {[%clk 0:00:19]}  g6 {[%clk 0:00:31]} 45. Rxh7 {[%clk 0:00:19]}  Rd1 {[%clk 0:00:30]} 46. Re7 {[%clk 0:00:18]}  Nb5 {[%clk 0:00:25]} 47. Rxe5 {[%clk 0:00:16]}  Nc7 {[%clk 0:00:22]} 48. Rg5 {[%clk 0:00:14]}  Rd6 {[%clk 0:00:21]} 49. h4 {[%clk 0:00:13]}  Nxa6 {[%clk 0:00:21]} 50. Bxa6 {[%clk 0:00:13]}  Kxa6 {[%clk 0:00:22]} 51. h5 {[%clk 0:00:12]}  gxh5 {[%clk 0:00:23]} 52. Rxh5 {[%clk 0:00:08]}  Kb7 {[%clk 0:00:22]} 53. g5 {[%clk 0:00:08]}  Kc7 {[%clk 0:00:21]} 54. Rh7+ {[%clk 0:00:08]}  Kd8 {[%clk 0:00:20]} 55. f4 {[%clk 0:00:09]}  Ke8 {[%clk 0:00:20]} 56. Kg3 {[%clk 0:00:10]}  Kf8 {[%clk 0:00:20]} 57. Kg4 {[%clk 0:00:10]}  Ra6 {[%clk 0:00:20]} 58. Rb7 {[%clk 0:00:11]}  Kg8 {[%clk 0:00:19]} 59. f5 {[%clk 0:00:11]}  Ra1 {[%clk 0:00:19]} 60. Kh5 {[%clk 0:00:11]}  Ra6 {[%clk 0:00:16]} 61. f6 {[%clk 0:00:11]}  Ra1 {[%clk 0:00:12]} 62. Kg6 {[%clk 0:00:12]} 1-0


[Site "https://www.chess.com"]

[Event "Titled Tuesday Blitz July 25 Late 2023"]
[White "ATM622"]
[Black "Al Mukhaini, Shima"]
[BlackFideId "22005854"]
[WhiteElo "2561"]
[BlackElo "2410"]
[Result "1/2-1/2"]
[Round "3"]
[TimeControl "180+2"]
[Date "2023.07.25"]
[WhiteClock "0:00:44"]
[BlackClock "0:00:40"]
[Board "108"]

1. d4 {[%clk 0:03:00]}  Nf6 {[%clk 0:02:59]} 2. c4 {[%clk 0:02:58]}  g6 {[%clk 0:02:58]} 3. g3 {[%clk 0:02:56]}  Bg7 {[%clk 0:02:56]} 4. Bg2 {[%clk 0:02:56]}  O-O {[%clk 0:02:56]} 5. Nf3 {[%clk 0:02:55]}  c5 {[%clk 0:02:54]} 6. O-O {[%clk 0:02:55]}  cxd4 {[%clk 0:02:53]} 7. Nxd4 {[%clk 0:02:54]}  Nc6 {[%clk 0:02:54]} 8. Nxc6 {[%clk 0:02:53]}  dxc6 {[%clk 0:02:53]} 9. Nc3 {[%clk 0:02:51]}  Be6 {[%clk 0:02:50]} 10. b3 {[%clk 0:02:37]}  Ne4 {[%clk 0:02:40]} 11. Bxe4 {[%clk 0:02:35]}  Bxc3 {[%clk 0:02:40]} 12. Rb1 {[%clk 0:02:35]}  Bh3 {[%clk 0:02:39]} 13. Bg2 {[%clk 0:02:31]}  Bxg2 {[%clk 0:02:38]} 14. Kxg2 {[%clk 0:02:32]}  Qxd1 {[%clk 0:02:33]} 15. Rxd1 {[%clk 0:02:31]}  Rad8 {[%clk 0:02:34]} 16. Bh6 {[%clk 0:02:31]}  Bg7 {[%clk 0:02:32]} 17. Bxg7 {[%clk 0:02:28]}  Kxg7 {[%clk 0:02:32]} 18. Kf3 {[%clk 0:02:27]}  Kf6 {[%clk 0:02:29]} 19. Ke4 {[%clk 0:02:21]}  Ke6 {[%clk 0:02:28]} 20. f4 {[%clk 0:02:21]}  f5+ {[%clk 0:02:28]} 21. Kf3 {[%clk 0:02:13]}  Kf6 {[%clk 0:02:28]} 22. e4 {[%clk 0:02:11]}  e5 {[%clk 0:02:28]} 23. exf5 {[%clk 0:02:05]}  Kxf5 {[%clk 0:02:24]} 24. fxe5 {[%clk 0:02:03]}  Kxe5+ {[%clk 0:02:23]} 25. Ke3 {[%clk 0:02:04]}  g5 {[%clk 0:02:15]} 26. b4 {[%clk 0:01:58]}  g4 {[%clk 0:02:13]} 27. Rxd8 {[%clk 0:01:57]}  Rxd8 {[%clk 0:02:12]} 28. b5 {[%clk 0:01:49]}  c5 {[%clk 0:02:07]} 29. Rf1 {[%clk 0:01:46]}  Rd4 {[%clk 0:01:51]} 30. Rf7 {[%clk 0:01:45]}  Rxc4 {[%clk 0:01:52]} 31. Rxb7 {[%clk 0:01:45]}  Rc3+ {[%clk 0:01:50]} 32. Kd2 {[%clk 0:01:44]}  Ra3 {[%clk 0:01:50]} 33. Rxh7 {[%clk 0:01:36]}  Kd4 {[%clk 0:01:49]} 34. Rd7+ {[%clk 0:01:28]}  Kc4 {[%clk 0:01:49]} 35. Rg7 {[%clk 0:01:28]}  Rxa2+ {[%clk 0:01:46]} 36. Ke3 {[%clk 0:01:28]}  Rxh2 {[%clk 0:01:47]} 37. Rxg4+ {[%clk 0:01:28]}  Kxb5 {[%clk 0:01:47]} 38. Rg7 {[%clk 0:01:28]}  a5 {[%clk 0:01:46]} 39. g4 {[%clk 0:01:28]}  a4 {[%clk 0:01:42]} 40. Kd3 {[%clk 0:01:28]}  Rh3+ {[%clk 0:01:40]} 41. Kc2 {[%clk 0:01:24]}  Kc4 {[%clk 0:01:38]} 42. g5 {[%clk 0:01:21]}  Rh2+ {[%clk 0:01:37]} 43. Kb1 {[%clk 0:01:21]}  Rg2 {[%clk 0:01:37]} 44. g6 {[%clk 0:01:18]}  Kc3 {[%clk 0:01:29]} 45. Rg8 {[%clk 0:01:16]}  c4 {[%clk 0:01:28]} 46. g7 {[%clk 0:01:17]}  a3 {[%clk 0:01:22]} 47. Ka1 {[%clk 0:01:16]}  a2 {[%clk 0:01:05]} 48. Rc8 {[%clk 0:01:07]}  Rxg7 {[%clk 0:01:05]} 49. Kxa2 {[%clk 0:01:06]}  Kd3 {[%clk 0:00:56]} 50. Kb2 {[%clk 0:01:01]}  Rb7+ {[%clk 0:00:50]} 51. Kc1 {[%clk 0:01:00]}  Kc3 {[%clk 0:00:43]} 52. Rh8 {[%clk 0:00:57]}  Rd7 {[%clk 0:00:42]} 53. Rh6 {[%clk 0:00:47]}  Rd5 {[%clk 0:00:35]} 54. Rh8 {[%clk 0:00:46]}  Kd3 {[%clk 0:00:34]} 55. Rh3+ {[%clk 0:00:44]}  Kd4 {[%clk 0:00:34]} 56. Kc2 {[%clk 0:00:43]}  Ra5 {[%clk 0:00:30]} 57. Rh4+ {[%clk 0:00:43]}  Kc5 {[%clk 0:00:30]} 58. Rh5+ {[%clk 0:00:43]}  Kb4 {[%clk 0:00:30]} 59. Rxa5 {[%clk 0:00:43]}  Kxa5 {[%clk 0:00:31]} 60. Kc3 {[%clk 0:00:43]}  Kb5 {[%clk 0:00:31]} 61. Kc2 {[%clk 0:00:44]}  Kb4 {[%clk 0:00:31]} 62. Kb2 {[%clk 0:00:44]}  c3+ {[%clk 0:00:32]} 63. Kc2 {[%clk 0:00:44]}  Kc4 {[%clk 0:00:33]} 64. Kc1 {[%clk 0:00:44]}  Kd3 {[%clk 0:00:34]} 65. Kd1 {[%clk 0:00:44]}  Kc4 {[%clk 0:00:34]} 66. Kc2 {[%clk 0:00:44]}  Kb4 {[%clk 0:00:35]} 67. Kc1 {[%clk 0:00:45]}  Kb3 {[%clk 0:00:36]} 68. Kb1 {[%clk 0:00:45]}  Ka3 {[%clk 0:00:36]} 69. Kc2 {[%clk 0:00:45]}  Kb4 {[%clk 0:00:37]} 70. Kc1 {[%clk 0:00:45]}  Kc4 {[%clk 0:00:37]} 71. Kc2 {[%clk 0:00:45]}  Kd4 {[%clk 0:00:38]} 72. Kc1 {[%clk 0:00:45]}  Kd3 {[%clk 0:00:39]} 73. Kd1 {[%clk 0:00:44]}  c2+ {[%clk 0:00:39]} 74. Kc1 {[%clk 0:00:44]}  Kc3 {[%clk 0:00:40]} 1/2-1/2


[Site "https://www.chess.com"]

[Event "Titled Tuesday Blitz July 25 Late 2023"]
[White "dodoucb"]
[Black "Horobetz, Graham"]
[BlackFideId "2047322"]
[WhiteElo "2403"]
[BlackElo "2556"]
[Result "0-1"]
[Round "3"]
[TimeControl "180+2"]
[Date "2023.07.25"]
[WhiteClock "0:00:17"]
[BlackClock "0:00:26"]
[Board "109"]

1. Nf3 {[%clk 0:03:00]}  c5 {[%clk 0:02:52]} 2. c4 {[%clk 0:02:54]}  Nc6 {[%clk 0:02:50]} 3. b3 {[%clk 0:02:54]}  g6 {[%clk 0:02:48]} 4. Bb2 {[%clk 0:02:54]}  Nf6 {[%clk 0:02:49]} 5. e3 {[%clk 0:02:54]}  Bg7 {[%clk 0:02:49]} 6. Nc3 {[%clk 0:02:54]}  O-O {[%clk 0:02:49]} 7. Be2 {[%clk 0:02:54]}  d6 {[%clk 0:02:46]} 8. O-O {[%clk 0:02:54]}  e5 {[%clk 0:02:45]} 9. d3 {[%clk 0:02:51]}  h6 {[%clk 0:02:41]} 10. Nd5 {[%clk 0:02:50]}  Nxd5 {[%clk 0:02:41]} 11. cxd5 {[%clk 0:02:50]}  Ne7 {[%clk 0:02:42]} 12. e4 {[%clk 0:02:50]}  f5 {[%clk 0:02:43]} 13. Nd2 {[%clk 0:02:48]}  h5 {[%clk 0:02:39]} 14. f4 {[%clk 0:02:38]}  exf4 {[%clk 0:02:23]} 15. Bxg7 {[%clk 0:02:36]}  Kxg7 {[%clk 0:02:24]} 16. Rxf4 {[%clk 0:02:34]}  fxe4 {[%clk 0:02:22]} 17. Rxf8 {[%clk 0:02:13]}  Qxf8 {[%clk 0:02:23]} 18. dxe4 {[%clk 0:02:13]}  Qf6 {[%clk 0:02:10]} 19. Nc4 {[%clk 0:01:36]}  b5 {[%clk 0:02:07]} 20. Ne3 {[%clk 0:01:30]}  Bd7 {[%clk 0:02:00]} 21. Rc1 {[%clk 0:01:22]}  Rf8 {[%clk 0:01:58]} 22. Bf3 {[%clk 0:01:19]}  g5 {[%clk 0:01:49]} 23. Qd2 {[%clk 0:01:14]}  g4 {[%clk 0:01:47]} 24. Bd1 {[%clk 0:01:14]}  Ng6 {[%clk 0:01:39]} 25. Bc2 {[%clk 0:01:11]}  Ne5 {[%clk 0:01:38]} 26. Rf1 {[%clk 0:01:11]}  Qh6 {[%clk 0:01:31]} 27. a4 {[%clk 0:00:47]}  Rxf1+ {[%clk 0:01:29]} 28. Nxf1 {[%clk 0:00:44]}  Qxd2 {[%clk 0:01:17]} 29. Nxd2 {[%clk 0:00:45]}  bxa4 {[%clk 0:01:16]} 30. bxa4 {[%clk 0:00:46]}  Kf6 {[%clk 0:01:08]} 31. Kf2 {[%clk 0:00:46]}  Kg5 {[%clk 0:01:07]} 32. a5 {[%clk 0:00:44]}  Bb5 {[%clk 0:01:07]} 33. g3 {[%clk 0:00:32]}  h4 {[%clk 0:01:04]} 34. Ke3 {[%clk 0:00:32]}  h3 {[%clk 0:01:01]} 35. Bd1 {[%clk 0:00:25]}  Bd7 {[%clk 0:00:35]} 36. Bb3 {[%clk 0:00:23]}  Bb5 {[%clk 0:00:32]} 37. Bd1 {[%clk 0:00:22]}  Kf6 {[%clk 0:00:32]} 38. Bb3 {[%clk 0:00:18]}  c4 {[%clk 0:00:32]} 39. Bd1 {[%clk 0:00:17]}  c3 {[%clk 0:00:32]} 40. Nb3 {[%clk 0:00:17]}  Ba4 {[%clk 0:00:30]} 41. Kd4 {[%clk 0:00:16]}  Bxb3 {[%clk 0:00:29]} 42. Bxb3 {[%clk 0:00:16]}  Nf3+ {[%clk 0:00:28]} 43. Kxc3 {[%clk 0:00:17]}  Nxh2 {[%clk 0:00:28]} 44. Kd4 {[%clk 0:00:18]}  Nf3+ {[%clk 0:00:26]} 45. Ke3 {[%clk 0:00:17]}  h2 {[%clk 0:00:26]} 0-1


[Site "https://www.chess.com"]

[Event "Titled Tuesday Blitz July 25 Late 2023"]
[White "Fonseca Manrique, Enrique"]
[Black "Herman, Daniel"]
[WhiteFideId "5114330"]
[BlackFideId "30935008"]
[WhiteElo "2556"]
[BlackElo "2402"]
[Result "1-0"]
[Round "3"]
[TimeControl "180+2"]
[Date "2023.07.25"]
[WhiteClock "0:00:13"]
[BlackClock "0:00:00"]
[Board "110"]

1. e4 {[%clk 0:02:16]}  c6 {[%clk 0:02:59]} 2. d4 {[%clk 0:02:17]}  d5 {[%clk 0:02:59]} 3. e5 {[%clk 0:02:17]}  Bf5 {[%clk 0:02:59]} 4. Nf3 {[%clk 0:02:18]}  e6 {[%clk 0:02:58]} 5. Be2 {[%clk 0:02:19]}  Nd7 {[%clk 0:02:58]} 6. O-O {[%clk 0:02:19]}  Ne7 {[%clk 0:02:57]} 7. Nbd2 {[%clk 0:02:19]}  c5 {[%clk 0:02:57]} 8. c4 {[%clk 0:02:19]}  cxd4 {[%clk 0:02:44]} 9. Nxd4 {[%clk 0:02:13]}  Nxe5 {[%clk 0:02:31]} 10. cxd5 {[%clk 0:01:45]}  Nxd5 {[%clk 0:02:03]} 11. Qa4+ {[%clk 0:01:35]}  Nd7 {[%clk 0:01:56]} 12. Nxf5 {[%clk 0:01:29]}  exf5 {[%clk 0:01:56]} 13. Bf3 {[%clk 0:01:17]}  Nb6 {[%clk 0:01:51]} 14. Re1+ {[%clk 0:01:16]}  Be7 {[%clk 0:01:51]} 15. Qa3 {[%clk 0:00:46]}  Kf8 {[%clk 0:01:51]} 16. Qd3 {[%clk 0:00:45]}  g6 {[%clk 0:01:20]} 17. Nb3 {[%clk 0:00:44]}  Kg7 {[%clk 0:01:06]} 18. Qe3 {[%clk 0:00:36]}  Re8 {[%clk 0:00:59]} 19. Qh6+ {[%clk 0:00:36]}  Kg8 {[%clk 0:01:00]} 20. Bf4 {[%clk 0:00:31]}  Bf8 {[%clk 0:00:53]} 21. Qh3 {[%clk 0:00:28]}  Bg7 {[%clk 0:00:49]} 22. Bxb7 {[%clk 0:00:25]}  Bxb2 {[%clk 0:00:30]} 23. Rad1 {[%clk 0:00:23]}  Qf6 {[%clk 0:00:13]} 24. Bxa8 {[%clk 0:00:21]}  Rxa8 {[%clk 0:00:12]} 25. Qf3 {[%clk 0:00:20]}  Rf8 {[%clk 0:00:11]} 26. h3 {[%clk 0:00:20]}  Bc3 {[%clk 0:00:11]} 27. Re2 {[%clk 0:00:20]}  Qg7 {[%clk 0:00:10]} 28. Rc2 {[%clk 0:00:20]}  Bf6 {[%clk 0:00:10]} 29. Rc7 {[%clk 0:00:20]}  Ne5 {[%clk 0:00:10]} 30. Qg3 {[%clk 0:00:19]}  Nbc4 {[%clk 0:00:10]} 31. Nc5 {[%clk 0:00:18]}  g5 {[%clk 0:00:09]} 32. Bc1 {[%clk 0:00:18]}  f4 {[%clk 0:00:10]} 33. Qb3 {[%clk 0:00:17]}  g4 {[%clk 0:00:09]} 34. Bxf4 {[%clk 0:00:16]}  Nf3+ {[%clk 0:00:07]} 35. gxf3 {[%clk 0:00:15]}  gxf3+ {[%clk 0:00:08]} 36. Bg3 {[%clk 0:00:15]}  Bd4 {[%clk 0:00:08]} 37. Qxf3 {[%clk 0:00:15]}  Ne5 {[%clk 0:00:05]} 38. Qg2 {[%clk 0:00:13]}  Kh8 {[%clk 0:00:02]} 39. Ne4 {[%clk 0:00:13]}  Bb6 {[%clk 0:00:00]} 40. Re7 {[%clk 0:00:13]} 1-0


[Site "https://www.chess.com"]